bitfinex/quotes_SOLUSD_20250123
["timestamp","ask_amount","ask_price","bid_price","bid_amount"]
[1737640125598,0.03,246.57,246.48,19.03245108]
[1737640126007,19.03245108,246.56,246.46,19.03245108]
[1737640126192,20.0,246.52,246.46,19.03245108]
[1737640126397,20.0,246.52,246.42,19.03245108]
[1737640126398,20.0,246.51,246.42,19.03245108]
[1737640126597,19.03245108,246.5,246.42,19.03245108]
[1737640126997,19.03245108,246.5,246.39,19.03245108]
[1737640127290,19.03245108,246.5,246.41,19.03245108]
[1737640127888,4.0569,246.49,246.41,19.03245108]
[1737640129021,19.03245108,246.48,246.39,19.03245108]
[1737640129202,19.03245108,246.45,246.37,19.03245108]
[1737640129405,19.03245108,246.45,246.31,5.7825]
[1737640129406,20.0,246.42,246.35,19.03245108]
[1737640129613,19.03245108,246.43,246.33,19.03245108]
[1737640129802,20.0,246.4,246.33,19.03245108]
[1737640129997,4.0586,246.39,246.33,19.03245108]
[1737640130306,4.0586,246.39,246.31,19.09545108]
[1737640132520,20.0,246.4,246.33,19.09545108]
[1737640133325,19.03245108,246.35,246.33,0.063]
[1737640134635,4.0594,246.34,246.33,0.063]
[1737640136614,4.0591,246.36,246.33,0.063]
[1737640138009,19.03245108,246.39,246.33,0.063]
[1737640138332,8.2919,246.47,246.33,0.063]
[1737640138333,19.03245108,246.41,246.33,0.063]
[1737640138636,4.0584,246.4,246.33,0.063]
[1737640139014,20.0,246.38,246.33,0.063]
[1737640139213,19.03245108,246.37,246.33,0.063]
[1737640140639,4.0591,246.36,246.33,0.063]
[1737640141303,4.0584,246.4,246.33,19.09545108]
[1737640141506,4.0584,246.4,246.35,19.03245108]
[1737640141706,4.0577,246.44,246.35,19.03245108]
[1737640142008,19.03245108,246.43,246.33,19.09545108]
[1737640142412,4.0577,246.44,246.35,19.03245108]
[1737640142710,20.0,246.42,246.35,19.03245108]
[1737640142910,4.0577,246.44,246.37,19.03245108]
[1737640143125,4.0567,246.5,246.43,19.03245108]
[1737640143723,4.0567,246.5,246.41,19.03245108]
[1737640144038,19.03245108,246.49,246.38,8.1999]
[1737640144344,19.03245108,246.49,246.39,19.03245108]
[1737640144716,20.0,246.48,246.41,19.03245108]
[1737640144922,4.0572,246.47,246.41,19.03245108]
[1737640145540,4.057,246.49,246.43,19.03245108]
[1737640148442,4.0567,246.5,246.43,19.03245108]
[1737640150756,19.03245108,246.49,246.41,19.03245108]
[1737640151325,4.0567,246.5,246.41,19.03245108]
[1737640151535,33.22845108,246.55,246.45,19.03245108]
[1737640151737,33.22845108,246.55,246.38,8.1999]
[1737640151738,33.22845108,246.55,246.47,19.03245108]
[1737640152567,4.0559,246.55,246.49,19.03245108]
[1737640152846,0.03,246.57,246.53,19.03245108]
[1737640153027,0.03,246.57,246.55,19.03245108]
[1737640154722,0.03,246.57,246.47,19.03245108]
[1737640154723,39.03245108,246.56,246.47,19.03245108]
[1737640155253,39.03245108,246.56,246.45,19.03245108]
[1737640155645,39.03245108,246.56,246.47,19.03245108]
[1737640156047,4.0559,246.55,246.47,19.03245108]
[1737640156749,20.0,246.51,246.43,19.03245108]
[1737640156938,14.1958,246.55,246.39,19.03245108]
[1737640156939,19.03245108,246.48,246.39,19.03245108]
[1737640157140,19.03245108,246.44,246.35,19.09545108]
[1737640157742,19.03245108,246.42,246.35,19.09545108]
[1737640158054,4.0582,246.41,246.35,19.09545108]
[1737640158233,39.03245108,246.44,246.35,19.09545108]
[1737640158434,4.058,246.43,246.35,19.09545108]
[1737640158638,4.0576,246.45,246.37,19.03245108]
[1737640160026,4.0576,246.45,246.35,4.1222]
[1737640160233,4.0576,246.45,246.39,19.03245108]
[1737640160438,19.03245108,246.48,246.39,19.03245108]
[1737640160439,4.0574,246.47,246.39,19.03245108]
[1737640160639,19.03245108,246.53,246.43,19.03245108]
[1737640160847,20.0,246.48,246.43,19.03245108]
[1737640161048,20.0,246.48,246.41,19.03245108]
[1737640161358,19.03245108,246.51,246.41,19.03245108]
[1737640162356,4.0567,246.5,246.41,19.03245108]
[1737640163257,19.03245108,246.49,246.41,19.03245108]
[1737640163455,19.03245108,246.49,246.35,0.063]
[1737640163456,20.0,246.46,246.39,19.03245108]
[1737640163644,19.03245108,246.47,246.39,19.03245108]
[1737640164239,19.03245108,246.47,246.37,19.03245108]
[1737640164439,19.03245108,246.47,246.39,19.03245108]
[1737640164960,4.0574,246.46,246.39,19.03245108]
[1737640165148,4.0574,246.46,246.35,4.1221]
[1737640165149,4.0574,246.46,246.37,19.03245108]
[1737640165457,19.03245108,246.39,246.35,0.063]
[1737640165657,19.03245108,246.37,246.35,0.063]
[1737640165857,20.0,246.34,246.33,0.0001]
[1737640166040,39.03245108,246.34,246.33,0.0001]
[1737640166436,62.80933508,246.34,246.33,0.0001]
[1737640166756,66.86873508,246.34,246.33,0.0001]
[1737640166962,43.09185108,246.34,246.33,0.0001]
[1737640167137,4.0594,246.34,246.33,0.0001]
[1737640167460,24.0594,246.34,246.33,0.0001]
[1737640167656,20.0,246.34,246.33,0.0001]
[1737640167861,4.0592,246.36,246.33,0.0001]
[1737640169961,19.03245108,246.36,246.33,0.0001]
[1737640170672,39.03245108,246.34,246.33,0.0001]
[1737640170844,39.03245108,246.34,246.31,0.0001]
[1737640170845,23.776884,246.33,246.31,0.0001]
[1737640171040,20.0,246.29,246.25,0.0001]
[1737640171363,19.03245108,246.26,246.25,0.0001]
[1737640171567,19.03245108,246.28,246.25,0.0001]
[1737640171944,4.0605,246.27,246.25,0.0001]
[1737640172144,20.0,246.26,246.25,0.0001]
[1737640173861,4.0605,246.27,246.25,0.0001]
[1737640174360,23.776884,246.26,246.25,0.0001]
[1737640174542,42.80933508,246.26,246.25,0.0001]
[1737640176550,19.03245108,246.26,246.25,0.0001]
[1737640176868,42.80933508,246.26,246.25,0.0001]
[1737640180362,4.0605,246.27,246.25,0.0001]
[1737640180771,20.0,246.26,246.25,0.0001]
[1737640181372,39.03245108,246.26,246.25,0.0001]
[1737640182176,23.09315108,246.26,246.25,0.0001]
[1737640182470,66.87003508,246.26,246.25,0.0001]
[1737640182676,46.87003508,246.26,246.25,0.0001]
[1737640183860,47.87003508,246.26,246.25,0.0001]
[1737640184980,20.0,246.18,246.12,19.03245108]
[1737640185282,20.0,246.17,246.12,19.03245108]
[1737640185450,19.03245108,246.22,246.12,19.03245108]
[1737640185874,27.838384,246.21,246.12,19.03245108]
[1737640187467,19.03245108,246.18,246.1,19.09545108]
[1737640187669,39.03245108,246.18,246.1,19.09545108]
[1737640187877,4.0615,246.21,246.14,19.03245108]
[1737640188178,4.0615,246.21,246.16,19.03245108]
[1737640188557,35.51043327,246.25,246.16,19.03245108]
[1737640188766,4.061,246.24,246.16,19.03245108]
[1737640189080,1.0,246.33,246.1,4.1263]
[1737640189081,4.06,246.3,246.23,19.03245108]
[1737640189282,4.06,246.3,246.19,1.6353]
[1737640189283,4.0598,246.32,246.25,19.03245108]
[1737640189581,24.0598,246.32,246.25,19.03245108]
[1737640189764,4.0598,246.32,246.25,19.03245108]
[1737640190160,19.03245108,246.26,246.15,19.03245108]
[1737640190378,19.03245108,246.21,246.11,19.03245108]
[1737640190681,19.03245108,246.19,246.1,0.063]
[1737640191068,20.0,246.16,246.1,0.063]
[1737640191268,20.0,246.16,246.11,19.03245108]
[1737640191470,20.0,246.16,246.1,0.063]
[1737640191859,4.0625,246.15,246.1,0.063]
[1737640192583,4.0625,246.15,246.11,0.063]
[1737640193162,20.0,246.14,246.11,0.063]
[1737640193569,23.09495108,246.15,246.11,0.063]
[1737640194158,20.0,246.12,246.11,0.063]
[1737640195265,24.063,246.12,246.11,0.063]
[1737640195662,19.03245108,246.15,246.11,0.063]
[1737640195965,19.03245108,246.19,246.11,0.063]
[1737640196359,23.776884,246.18,246.11,0.063]
[1737640196594,23.776884,246.18,246.11,19.09545108]
[1737640197362,20.0,246.16,246.11,0.063]
[1737640198264,4.0622,246.17,246.11,0.063]
[1737640199877,24.0627,246.15,246.11,0.063]
[1737640200199,19.03245108,246.13,246.11,0.063]
[1737640200390,23.09515108,246.15,246.11,0.063]
[1737640202507,20.0,246.12,246.11,0.063]
[1737640202673,23.09525108,246.13,246.11,0.063]
[1737640202881,20.0,246.12,246.11,0.063]
[1737640203083,23.09475108,246.17,246.11,0.063]
[1737640203489,19.03245108,246.15,246.11,0.063]
[1737640203698,37.994684,246.17,246.11,0.063]
[1737640203699,23.776884,246.16,246.11,0.063]
[1737640203892,20.0,246.12,246.11,0.063]
[1737640206408,4.0623,246.16,246.11,0.063]
[1737640206898,20.0,246.14,246.11,0.063]
[1737640207090,24.0627,246.14,246.11,0.063]
[1737640207582,20.0,246.12,246.11,0.063]
[1737640207988,19.03245108,246.13,246.11,0.063]
[1737640209195,4.063,246.12,246.11,0.063]
[1737640209401,27.839884,246.12,246.11,0.063]
[1737640209590,20.0,246.09,246.08,0.0001]
[1737640209797,23.776884,246.08,246.0,0.063]
[1737640210013,19.03245108,246.01,246.0,0.063]
[1737640210190,42.80933508,246.01,246.0,0.063]
[1737640210917,42.80933508,246.01,245.94,0.063]
[1737640210918,20.0,245.97,245.94,0.063]
[1737640211122,42.80933508,245.95,245.94,0.063]
[1737640211286,39.03245108,245.92,245.85,1.2657]
[1737640211479,20.0,245.92,245.85,20.29815108]
[1737640211684,23.09815108,245.96,245.87,19.03245108]
[1737640211994,19.03245108,245.98,245.87,19.03245108]
[1737640212483,20.0,245.95,245.87,19.03245108]
[1737640212686,20.0,245.93,245.87,19.03245108]
[1737640213292,20.0,245.93,245.85,20.29815108]
[1737640213509,20.0,245.93,245.85,24.36555108]
[1737640213888,19.03245108,245.98,245.89,19.03245108]
[1737640214083,1.0,246.09,245.91,19.03245108]
[1737640214084,19.03245108,246.0,245.91,19.03245108]
[1737640214284,6.6509,246.08,245.86,0.21942436]
[1737640214285,19.03245108,246.04,245.95,19.03245108]
[1737640215120,19.03245108,246.04,245.96,4.0657]
[1737640215519,19.03245108,246.02,245.96,4.0657]
[1737640216019,19.03245108,246.02,245.93,23.09855108]
[1737640216195,19.03245108,246.0,245.91,23.09875108]
[1737640216398,19.03245108,246.0,245.91,4.0663]
[1737640216590,19.03245108,245.98,245.91,4.0663]
[1737640216789,19.03245108,245.98,245.89,23.09915108]
[1737640217023,19.03245108,245.96,245.89,4.0667]
[1737640217320,19.03245108,245.98,245.89,23.09915108]
[1737640218484,6.6509,246.08,245.89,23.09915108]
[1737640218485,19.03245108,246.02,245.94,19.03245108]
[1737640218987,19.03245108,245.98,245.88,19.03245108]
[1737640219192,19.03245108,245.94,245.86,19.03245108]
[1737640219411,19.03245108,245.94,245.85,1.2657]
[1737640219809,19.03245108,245.92,245.85,1.2657]
[1737640220130,19.03245108,245.92,245.86,4.0672]
[1737640220703,20.0,245.85,245.77,1.6486]
[1737640220904,19.03245108,245.79,245.76,0.0001]
[1737640221438,19.03245108,245.85,245.76,23.10145108]
[1737640221806,6.4401,245.99,245.81,19.03245108]
[1737640221807,19.03245108,245.89,245.81,19.03245108]
[1737640222026,19.03245108,245.91,245.81,19.03245108]
[1737640222407,19.03245108,245.89,245.81,23.10045108]
[1737640222603,19.03245108,245.87,245.79,23.10085108]
[1737640223204,19.03245108,245.87,245.76,0.0001]
[1737640223205,19.03245108,245.87,245.78,4.0686]
[1737640224042,19.03245108,245.85,245.78,4.0686]
[1737640224604,19.03245108,245.85,245.77,19.03245108]
[1737640224605,19.03245108,245.85,245.77,4.0688]
[1737640225108,10.1654,245.94,245.76,0.0001]
[1737640225109,19.03245108,245.8,245.76,0.0001]
[1737640225316,19.03245108,245.84,245.76,0.0001]
[1737640225519,19.03245108,245.82,245.76,0.0001]
[1737640226616,19.03245108,245.84,245.76,0.0001]
[1737640227008,19.03245108,245.82,245.76,0.0001]
[1737640227219,23.776884,245.81,245.78,0.03]
[1737640227540,19.03245108,245.8,245.78,0.03]
[1737640228638,27.845384,245.79,245.78,0.03]
[1737640230137,20.0,245.76,245.66,19.03245108]
[1737640230455,19.03245108,245.81,245.72,19.03245108]
[1737640231044,19.03245108,245.81,245.73,4.0695]
[1737640231846,19.03245108,245.77,245.73,4.0695]
[1737640232346,19.03245108,245.79,245.73,4.0695]
[1737640232507,19.03245108,245.81,245.73,4.0695]
[1737640232926,19.03245108,245.81,245.71,4.0698]
[1737640233128,19.03245108,245.77,245.69,4.07]
[1737640233330,19.03245108,245.75,245.66,19.03245108]
[1737640234607,19.03245108,245.73,245.66,4.0705]
[1737640234806,19.03245108,245.75,245.66,23.10295108]
[1737640235030,19.03245108,245.77,245.66,23.10295108]
[1737640235236,23.776884,245.76,245.66,23.10295108]
[1737640235451,19.03245108,245.77,245.66,23.10295108]
[1737640236041,20.0,245.67,245.59,19.03245108]
[1737640236330,19.03245108,245.7,245.6,4.0716]
[1737640236544,19.03245108,245.68,245.6,4.0716]
[1737640236911,20.0,245.61,245.55,19.03245108]
[1737640237113,19.03245108,245.62,245.54,0.063]
[1737640238106,19.03245108,245.6,245.54,0.063]
[1737640238314,19.03245108,245.56,245.54,0.063]
[1737640239151,19.03245108,245.58,245.54,0.063]
[1737640239361,19.03245108,245.62,245.54,0.063]
[1737640239528,19.03245108,245.62,245.54,4.1356]
[1737640241046,25.46985108,245.76,245.58,6.3064]
[1737640241359,19.03245108,245.7,245.6,19.03245108]
[1737640242230,4.0691,245.75,245.58,25.33885108]
[1737640242231,19.03245108,245.68,245.58,25.33885108]
[1737640243035,19.03245108,245.7,245.6,19.03245108]
[1737640243245,19.03245108,245.72,245.62,19.03245108]
[1737640244261,19.03245108,245.74,245.64,19.03245108]
[1737640244560,19.03245108,245.76,245.66,19.03245108]
[1737640245266,19.03245108,245.76,245.67,4.0705]
[1737640246862,0.063,245.81,245.7,19.03245108]
[1737640246863,19.03245108,245.8,245.7,19.03245108]
[1737640247041,0.063,245.81,245.74,19.03245108]
[1737640247749,0.063,245.81,245.8,1.6378]
[1737640247952,0.063,245.81,245.8,2.6378]
[1737640248264,19.03245108,245.95,245.83,6.5104]
[1737640248472,19.03245108,245.93,245.83,25.54285108]
[1737640248679,19.03245108,245.89,245.83,6.5104]
[1737640248977,19.03245108,245.86,245.8,1.6378]
[1737640249873,19.03245108,245.84,245.8,1.6378]
[1737640250044,19.03245108,245.84,245.77,10.5791]
[1737640252669,19.09545108,245.84,245.77,10.5791]
[1737640253054,19.03245108,245.82,245.75,4.0691]
[1737640255069,19.09545108,245.84,245.75,4.0691]
[1737640255243,19.09545108,245.84,245.75,23.10155108]
[1737640256638,0.063,245.84,245.77,19.03245108]
[1737640257166,0.063,245.84,245.81,19.03245108]
[1737640259064,0.063,245.84,245.82,4.068]
[1737640259247,0.063,245.84,245.8,4.0682]
[1737640259442,0.063,245.84,245.77,19.03245108]
[1737640259662,19.03245108,245.83,245.74,1.5192]
[1737640259857,19.03245108,245.83,245.75,4.0691]
[1737640260265,19.03245108,245.79,245.74,1.5192]
[1737640260643,0.063,245.84,245.75,19.03245108]
[1737640260870,0.063,245.84,245.83,19.03245108]
[1737640261179,0.063,245.84,245.83,23.10025108]
[1737640261360,0.0001,245.84,245.83,54.32853508]
[1737640261558,19.03245108,246.0,245.86,20.0]
[1737640261774,19.03245108,246.0,245.9,19.03245108]
[1737640262083,19.03245108,246.02,245.92,19.03245108]
[1737640262251,19.03245108,246.0,245.9,19.03245108]
[1737640262685,19.03245108,245.98,245.9,19.03245108]
[1737640262887,19.03245108,245.94,245.83,39.72125108]
[1737640263389,19.03245108,245.94,245.85,19.03245108]
[1737640263855,19.03245108,246.0,245.82,1.579]
[1737640263856,19.03245108,245.9,245.82,1.579]
[1737640264196,19.03245108,245.88,245.82,1.579]
[1737640264381,19.03245108,245.86,245.78,8.2285]
[1737640264559,19.03245108,245.84,245.78,8.2286]
[1737640265252,19.03245108,245.84,245.78,4.0686]
[1737640266690,19.03245108,245.86,245.78,4.0686]
[1737640266879,19.03245108,245.88,245.78,23.10105108]
[1737640267058,19.03245108,245.92,245.82,19.03245108]
[1737640267258,19.03245108,245.94,245.84,19.03245108]
[1737640267460,19.03245108,245.92,245.84,19.03245108]
[1737640268091,19.03245108,245.9,245.82,19.03245108]
[1737640268271,20.0,245.85,245.76,24.68425108]
[1737640268477,19.03245108,245.84,245.76,5.6518]
[1737640269388,19.03245108,245.9,245.81,19.03245108]
[1737640269596,19.03245108,245.92,245.83,19.03245108]
[1737640269974,19.03245108,245.9,245.81,19.03245108]
[1737640270202,20.0,245.82,245.74,19.03245108]
[1737640270515,19.03245108,245.81,245.72,19.03245108]
[1737640270797,19.03245108,245.81,245.73,4.0695]
[1737640271010,19.03245108,245.83,245.73,4.0695]
[1737640271172,19.03245108,245.83,245.74,19.03245108]
[1737640271369,19.03245108,245.85,245.74,19.03245108]
[1737640272278,19.03245108,245.89,245.76,1.6]
[1737640272499,19.03245108,245.93,245.84,19.03245108]
[1737640272806,23.776884,245.94,245.85,4.0675]
[1737640273102,20.0,245.91,245.85,4.0675]
[1737640273400,23.776884,245.94,245.85,4.0675]
[1737640273610,19.03245108,245.93,245.85,4.0675]
[1737640274190,19.03245108,245.91,245.83,4.0677]
[1737640274385,19.03245108,245.89,245.8,19.03245108]
[1737640274597,19.03245108,245.91,245.81,4.0681]
[1737640274799,25.12835108,246.0,245.81,4.0681]
[1737640274800,19.03245108,245.96,245.86,19.03245108]
[1737640275483,19.03245108,245.94,245.84,19.03245108]
[1737640275891,19.03245108,245.94,245.85,4.0675]
[1737640276479,19.03245108,245.94,245.86,19.03245108]
[1737640276681,19.03245108,245.98,245.88,19.03245108]
[1737640276903,19.09545108,246.0,245.9,19.03245108]
[1737640277208,0.063,246.0,245.99,19.03245108]
[1737640278085,0.063,246.0,245.99,23.09765108]
[1737640279883,0.063,246.0,245.97,23.09785108]
[1737640280304,0.063,246.0,245.95,19.03245108]
[1737640281191,0.063,246.0,245.92,4.0663]
[1737640281192,0.063,246.0,245.97,19.03245108]
[1737640281598,0.063,246.0,245.99,19.03245108]
[1737640282282,0.063,246.0,245.99,23.09765108]
[1737640282483,0.063,246.0,245.99,4.0652]
[1737640282680,0.063,246.0,245.99,23.09765108]
[1737640283386,0.063,246.0,245.99,4.0652]
[1737640284701,0.063,246.0,245.99,23.09765108]
[1737640287012,0.063,246.0,245.99,47.87453508]
[1737640287013,0.0001,246.0,245.99,47.87453508]
[1737640287186,0.063,246.09,246.03,1.0]
[1737640287387,0.063,246.09,246.08,19.03245108]
[1737640287785,0.063,246.09,246.06,19.03245108]
[1737640288409,0.063,246.09,246.0,19.25157711]
[1737640288410,0.063,246.09,246.08,19.03245108]
[1737640288998,0.063,246.09,246.08,23.09615108]
[1737640290287,0.0001,246.09,246.08,46.87303508]
[1737640290706,0.0001,246.09,246.08,195.20548616]
[1737640290905,0.03,246.22,246.11,23.776884]
[1737640291206,0.03,246.22,246.18,19.03245108]
[1737640291515,0.03,246.22,246.2,19.03245108]
[1737640293104,0.03,246.22,246.2,23.09405108]
[1737640294618,0.03,246.22,246.2,23.31288853]
[1737640296301,0.03,246.22,246.2,23.09405108]
[1737640298220,0.03,246.22,246.2,23.31292434]
[1737640298717,0.03,246.22,246.2,23.09405108]
[1737640300418,0.03,246.22,246.2,23.31289777]
[1737640302091,0.03,246.22,246.2,23.09405108]
[1737640303615,0.03,246.22,246.2,19.03245108]
[1737640303913,0.03,246.22,246.16,19.03245108]
[1737640304211,0.03,246.22,246.16,23.09475108]
[1737640304717,0.03,246.22,246.19,19.03245108]
[1737640304907,0.03,246.22,246.17,19.03245108]
[1737640306200,19.06245108,246.22,246.13,23.09525108]
[1737640306623,0.03,246.22,246.19,19.03245108]
[1737640307309,0.03,246.22,246.21,19.03245108]
[1737640308421,0.03,246.22,246.21,23.09395108]
[1737640309937,0.03,246.22,246.17,19.03245108]
[1737640310103,0.03,246.22,246.2,19.03245108]
[1737640310462,0.03,246.22,246.18,19.03245108]
[1737640311100,0.03,246.22,246.16,19.03245108]
[1737640311602,0.03,246.22,246.15,4.0625]
[1737640313219,0.03,246.22,246.16,19.03245108]
[1737640314745,0.03,246.22,246.17,4.0622]
[1737640315726,0.03,246.22,246.18,19.03245108]
[1737640315929,0.03,246.22,246.2,19.03245108]
[1737640316827,0.03,246.22,246.21,4.0615]
[1737640319118,0.0001,246.22,246.21,27.838384]
[1737640319717,0.0001,246.22,246.21,38.628384]
[1737640320243,0.0001,246.22,246.21,14.8515]
[1737640321145,0.0001,246.22,246.21,4.0615]
[1737640322147,0.0001,246.25,246.24,20.0]
[1737640322449,0.0001,246.25,246.24,63.02807013]
[1737640322628,0.0001,246.25,246.24,39.03245108]
[1737640323744,0.0001,246.25,246.24,64.02810202]
[1737640324052,0.0001,246.25,246.24,93.3892531]
[1737640324237,0.0001,246.25,246.24,93.17048616]
[1737640324747,0.0001,246.25,246.24,68.39360216]
[1737640324948,0.0001,246.25,246.24,23.09345108]
[1737640325354,0.0001,246.25,246.24,4.061]
[1737640325536,0.0001,246.25,246.24,23.09345108]
[1737640326950,0.0001,246.25,246.22,19.03245108]
[1737640327261,0.0001,246.25,246.22,4.0612]
[1737640327457,0.0001,246.25,246.2,19.03245108]
[1737640327660,0.0001,246.25,246.2,23.09415108]
[1737640328865,0.0001,246.25,246.18,23.09435108]
[1737640329460,0.0001,246.25,246.2,19.03245108]
[1737640330465,0.0001,246.25,246.21,4.0615]
[1737640331864,0.0001,246.25,246.19,4.0617]
[1737640332362,0.0001,246.25,246.17,23.09445108]
[1737640338059,11.88099613,246.21,246.17,0.03]
[1737640340672,15.94259613,246.21,246.17,0.03]
[1737640341772,11.88099613,246.21,246.17,0.03]
[1737640343371,11.88099613,246.23,246.17,0.03]
[1737640343951,11.88099613,246.19,246.17,0.03]
[1737640344572,20.0,246.22,246.17,0.03]
[1737640344573,11.88099613,246.21,246.17,0.03]
[1737640345773,15.94249613,246.21,246.17,0.03]
[1737640346070,35.65788013,246.19,246.17,0.03]
[1737640346242,11.88099613,246.19,246.17,0.03]
[1737640346673,1.5172,246.2,246.17,0.03]
[1737640347174,20.0,246.18,246.17,0.03]
[1737640347473,15.94299613,246.19,246.17,0.03]
[1737640347862,23.776884,246.18,246.17,0.03]
[1737640348874,20.0,246.16,246.09,0.03]
[1737640349075,13.39819613,246.2,246.11,11.88099613]
[1737640349261,20.0,246.17,246.09,11.91099613]
[1737640349462,17.45989613,246.2,246.09,11.91099613]
[1737640349463,13.39819613,246.2,246.09,11.91099613]
[1737640349765,13.39819613,246.2,246.11,11.88099613]
[1737640350154,11.88099613,246.2,246.11,11.88099613]
[1737640350354,15.94239613,246.22,246.11,11.88099613]
[1737640350789,11.88099613,246.22,246.13,11.88099613]
[1737640351007,11.88099613,246.24,246.15,11.88099613]
[1737640351495,11.88099613,246.24,246.16,4.0623]
[1737640351981,15.94199613,246.24,246.15,11.88099613]
[1737640352164,11.88099613,246.22,246.14,4.0625]
[1737640355186,11.88099613,246.24,246.14,4.0625]
[1737640355382,0.0001,246.25,246.17,11.88099613]
[1737640355585,0.0001,246.25,246.15,11.88099613]
[1737640356074,0.0001,246.25,246.17,11.88099613]
[1737640356388,0.0001,246.25,246.18,4.062]
[1737640357997,0.0001,246.25,246.21,11.88099613]
[1737640359482,0.0001,246.25,246.22,4.0614]
[1737640361787,0.0001,246.25,246.17,4.0622]
[1737640361987,11.88099613,246.24,246.16,0.03]
[1737640362299,11.88099613,246.22,246.16,0.03]
[1737640363583,4.061,246.24,246.16,0.03]
[1737640363889,11.88099613,246.18,246.16,0.03]
[1737640364389,11.88099613,246.2,246.16,0.03]
[1737640365279,11.88099613,246.22,246.16,0.03]
[1737640365705,11.88099613,246.24,246.16,0.03]
[1737640365986,0.0001,246.25,246.16,11.91099613]
[1737640366374,11.88099613,246.24,246.16,11.91099613]
[1737640366565,11.88099613,246.24,246.16,0.03]
[1737640367474,15.94209613,246.24,246.16,0.03]
[1737640369075,11.88099613,246.22,246.16,0.03]
[1737640369977,11.88099613,246.2,246.16,0.03]
[1737640370686,11.88099613,246.18,246.16,0.03]
[1737640371985,11.88099613,246.2,246.16,0.03]
[1737640374387,15.94269613,246.2,246.16,0.03]
[1737640376192,11.88099613,246.18,246.16,0.03]
[1737640379874,11.88099613,246.23,246.16,0.03]
[1737640380192,0.063,246.24,246.18,11.88099613]
[1737640380398,0.063,246.24,246.2,11.88099613]
[1737640380891,0.063,246.24,246.21,4.0615]
[1737640382502,0.063,246.24,246.19,4.0619]
[1737640383590,0.063,246.24,246.22,11.88099613]
[1737640383787,0.063,246.24,246.23,0.21880504]
[1737640384780,0.063,246.24,246.23,4.28000504]
[1737640387008,0.063,246.24,246.22,11.88099613]
[1737640388202,0.063,246.24,246.2,11.88099613]
[1737640389904,0.063,246.24,246.22,11.88099613]
[1737640391798,0.063,246.24,246.23,4.0612]
[1737640392613,0.063,246.24,246.22,15.94229613]
[1737640393487,0.063,246.24,246.23,0.2188347]
[1737640394001,0.063,246.24,246.23,4.2800347]
[1737640394520,0.063,246.24,246.23,16.16103083]
[1737640394822,0.0001,246.25,246.24,23.776884]
[1737640395024,0.0001,246.25,246.24,171.13488013]
[1737640395192,20.0,246.4,246.34,11.88099613]
[1737640395394,4.0581,246.42,246.36,11.88099613]
[1737640395600,11.88099613,246.45,246.36,11.88099613]
[1737640395809,1.6009,246.47,246.38,11.88099613]
[1737640395810,11.94399613,246.47,246.38,11.88099613]
[1737640395995,11.94399613,246.47,246.39,4.0586]
[1737640396200,11.88099613,246.45,246.36,11.88099613]
[1737640396412,11.88099613,246.43,246.34,11.88099613]
[1737640397308,11.88099613,246.41,246.32,11.88099613]
[1737640397495,11.88099613,246.39,246.31,129.3]
[1737640397701,11.88099613,246.39,246.3,11.88099613]
[1737640397903,15.93959613,246.39,246.3,15.94099613]
[1737640398201,4.0586,246.39,246.33,11.88099613]
[1737640398996,4.0581,246.42,246.33,11.88099613]
[1737640399308,4.0581,246.42,246.35,11.88099613]
[1737640399491,4.0579,246.44,246.35,11.88099613]
[1737640399899,20.0,246.42,246.35,11.88099613]
[1737640400413,20.0,246.42,246.33,11.88099613]
[1737640400912,4.0582,246.41,246.33,11.88099613]
[1737640401732,20.0,246.38,246.31,11.88099613]
[1737640403228,4.0589,246.37,246.31,11.88099613]
[1737640403422,4.0589,246.37,246.29,11.88099613]
[1737640403632,15.93989613,246.37,246.27,11.88099613]
[1737640404290,4.0589,246.37,246.29,11.88099613]
[1737640404613,4.0589,246.37,246.19,130.8194]